lending/lending_fUSD_20250621
["ID","MTS","AMOUNT","RATE_DAILY","PERIOD"]
[366807869,1750467051734,-490.0,0.00024931,4]
[366807870,1750467051744,-490.0,0.00024931,4]
[366807871,1750467051756,-490.0,0.00024931,4]
[366807872,1750467051767,-490.0,0.00024931,4]
[366807873,1750467051777,-490.0,0.00024931,4]
[366807874,1750467051787,-675.57,0.00024931,4]
[366807875,1750467051797,-490.0,0.00024931,4]
[366807876,1750467051806,-573.37,0.00024931,4]
[366807877,1750467051817,-490.0,0.00024931,4]
[366807878,1750467051827,-1566.91,0.00024931,4]
[366807879,1750467051837,-490.0,0.00024931,4]
[366807880,1750467051848,-490.0,0.00024931,4]
[366807881,1750467051858,-490.0,0.00024931,4]
[366807882,1750467051868,-490.0,0.00024931,4]
[366807883,1750467051878,-490.0,0.00024931,4]
[366807884,1750467051888,-151.0,0.00024931,7]
[366807885,1750467051898,-151.0,0.00024931,7]
[366807886,1750467051908,-490.0,0.00024931,4]
[366807887,1750467051918,-490.0,0.00024931,4]
[366807888,1750467051928,-151.0,0.00024931,7]
[366807889,1750467051938,-490.0,0.00024931,4]
[366807890,1750467051948,-151.0,0.00024931,7]
[366807891,1750467051958,-490.0,0.00024931,4]
[366807892,1750467051967,-573.81,0.00024931,4]
[366807893,1750467051977,-3259.78,0.00024931,4]
[366807894,1750467051986,-246.7,0.00024931,4]
[366807895,1750467051996,-490.0,0.00024931,4]
[366807896,1750467052006,-490.0,0.00024931,4]
[366807897,1750467052016,-490.0,0.00024931,4]
[366807898,1750467052026,-306.44,0.00024931,4]
[366807899,1750467052035,-490.0,0.00024931,4]
[366807900,1750467052045,-490.0,0.00024931,4]
[366807901,1750467052055,-490.0,0.00024931,4]
[366807902,1750467052065,-490.0,0.00024931,4]
[366807903,1750467052074,-490.0,0.00024931,4]
[366807904,1750467052085,-1017.95,0.00024931,4]
[366807905,1750467052097,-648.85,0.00024931,4]
[366807906,1750467052108,-313.63210481,0.00024931,4]
[366807907,1750467052118,-490.0,0.00024931,4]
[366807908,1750467052129,-490.0,0.00024931,4]
[366807909,1750467052140,-490.0,0.00024931,4]
[366807910,1750467052151,-490.0,0.00024931,4]
[366807911,1750467052162,-1010.41,0.00024931,4]
[366807912,1750467052172,-838.54,0.00024931,4]
[366807913,1750467052182,-561.12,0.00024931,4]
[366807914,1750467052192,-490.0,0.00024931,4]
[366807915,1750467052202,-490.0,0.00024931,4]
[366807916,1750467052212,-490.0,0.00024931,4]
[366807917,1750467052222,-490.0,0.00024931,4]
[366807918,1750467052232,-490.0,0.00024931,4]
[366807919,1750467052242,-490.0,0.00024931,4]
[366807920,1750467052252,-490.0,0.00024931,4]
[366807921,1750467052262,-490.0,0.00024931,4]
[366807922,1750467052272,-490.0,0.00024931,4]
[366807923,1750467052283,-490.0,0.00024931,4]
[366807924,1750467052296,-490.0,0.00024931,4]
[366807925,1750467052306,-7664.92,0.00024931,4]
[366807926,1750467052315,-600.94484124,0.00024931,4]
[366807927,1750467052326,-490.0,0.00024931,4]
[366807928,1750467052336,-490.0,0.00024931,4]
[366807929,1750467052345,-490.0,0.00024931,4]
[366807930,1750467052355,-151.0,0.00024931,7]
[366807931,1750467052366,-151.0,0.00024931,7]
[366807932,1750467052376,-535.72,0.00024931,4]
[366807933,1750467052387,-630.0,0.00024931,4]
[366807934,1750467052397,-490.0,0.00024931,4]
[366807935,1750467052407,-643.42,0.00024931,4]
[366807936,1750467052418,-296.50052,0.00024931,7]
[366807937,1750467052428,-490.0,0.00024931,4]
[366807938,1750467052438,-490.0,0.00024931,4]
[366807939,1750467052448,-296.50052,0.00024931,7]
[366807940,1750467052458,-490.0,0.00024931,4]
[366807941,1750467052468,-490.0,0.00024931,4]
[366807942,1750467052477,-490.0,0.00024931,4]
[366807943,1750467052487,-740.37,0.00024931,4]
[366807944,1750467052497,-296.50052,0.00024931,7]
[366807945,1750467052507,-296.50052,0.00024931,7]
[366807946,1750467052517,-666.48,0.00024931,4]
[366807947,1750467052527,-1402.81,0.00024931,4]
[366807948,1750467052537,-1928.49,0.00024931,4]
[366807949,1750467052547,-490.0,0.00024931,4]
[366807950,1750467052556,-490.0,0.00024931,4]
[366807951,1750467052567,-515.65939551,0.00024931,4]
[366807952,1750467052576,-490.0,0.00024931,4]
[366807953,1750467052586,-490.0,0.00024931,4]
[366807954,1750467052596,-490.0,0.00024931,4]
[366807955,1750467052606,-490.0,0.00024931,4]
[366807956,1750467052616,-875.93,0.00024931,4]
[366807957,1750467052626,-490.0,0.00024931,4]
[366807958,1750467052635,-575.61,0.00024931,4]
[366807959,1750467052645,-2680.72,0.00024931,4]
[366807960,1750467052655,-490.0,0.00024931,4]
[366807961,1750467052665,-1148.65,0.00024931,4]
[366807962,1750467052675,-490.0,0.00024931,4]
[366807963,1750467052685,-499.47,0.00024931,4]
[366807964,1750467052695,-490.0,0.00024931,4]
[366807965,1750467052705,-490.0,0.00024931,4]
[366807966,1750467052715,-490.0,0.00024931,4]
[366807967,1750467052725,-585.26,0.00024931,4]
[366807968,1750467052735,-490.0,0.00024931,4]
[366807969,1750467052746,-490.0,0.00024931,4]
[366807970,1750467052756,-506.05,0.00024931,4]
[366807971,1750467052766,-490.0,0.00024931,4]
[366807972,1750467052777,-755.96,0.00024931,4]
[366807973,1750467052787,-490.0,0.00024931,4]
[366807974,1750467052797,-5788.94,0.00024931,4]
[366807975,1750467052807,-490.0,0.00024931,4]
[366807976,1750467052817,-490.0,0.00024931,4]
[366807977,1750467052827,-151.0,0.00024931,7]
[366807978,1750467052837,-979.05,0.00024931,4]
[366807979,1750467052848,-151.0,0.00024931,7]
[366807980,1750467052859,-490.0,0.00024931,4]
[366807981,1750467052869,-1714.67,0.00024931,4]
[366807982,1750467052879,-1056.73,0.00024931,4]
[366807983,1750467052889,-151.0,0.00024931,7]
[366807984,1750467052900,-703.48,0.00024931,4]
[366807985,1750467052910,-151.0,0.00024931,7]
[366807986,1750467052920,-490.0,0.00024931,4]
[366807987,1750467052930,-490.0,0.00024931,4]
[366807988,1750467052940,-151.0,0.00024931,7]
[366807989,1750467052949,-490.0,0.00024931,4]
[366807990,1750467052959,-151.0,0.00024931,7]
[366807991,1750467052969,-490.0,0.00024931,4]
[366807992,1750467052979,-490.0,0.00024931,4]
[366807993,1750467052989,-490.0,0.00024931,4]
[366807994,1750467053000,-280.370206,0.00024931,7]
[366807995,1750467053010,-490.0,0.00024931,4]
[366807996,1750467053020,-490.0,0.00024931,4]
[366807997,1750467053032,-1389.72,0.00024931,4]
[366807998,1750467053042,-490.0,0.00024931,4]
[366807999,1750467053052,-490.0,0.00024931,4]
[366808000,1750467053061,-490.0,0.00024931,4]
[366808001,1750467053071,-490.0,0.00024931,4]
[366808002,1750467053081,-490.0,0.00024931,4]
[366808003,1750467053091,-490.0,0.00024931,4]
[366808004,1750467053102,-490.0,0.00024931,4]
[366808005,1750467053111,-490.0,0.00024931,4]
[366808006,1750467053121,-778.17,0.00024931,4]
[366808007,1750467053131,-1748.79,0.00024931,4]
[366808008,1750467053141,-490.0,0.00024931,4]
[366808009,1750467053151,-490.0,0.00024931,4]
[366808010,1750467053161,-490.0,0.00024931,4]
[366808011,1750467053171,-151.0,0.00024931,7]
[366808012,1750467053180,-151.0,0.00024931,7]
[366808013,1750467053190,-490.0,0.00024931,4]
[366808014,1750467053202,-567.41,0.00024931,4]
[366808015,1750467053211,-490.0,0.00024931,4]
[366808016,1750467053221,-490.0,0.00024931,4]
[366808017,1750467053231,-1625.6,0.00024931,4]
[366808018,1750467053241,-490.0,0.00024931,4]
[366808019,1750467053252,-490.0,0.00024931,4]
[366808020,1750467053262,-490.0,0.00024931,4]
[366808021,1750467053272,-490.0,0.00024931,4]
[366808022,1750467053282,-490.0,0.00024931,4]
[366808023,1750467053294,-490.0,0.00024931,4]
[366808024,1750467053304,-490.0,0.00024931,4]
[366808025,1750467053315,-490.0,0.00024931,4]
[366808026,1750467053325,-490.0,0.00024931,4]
[366808027,1750467053335,-490.0,0.00024931,4]
[366808028,1750467053345,-1000.0,0.00024931,4]
[366808029,1750467053354,-875.48,0.00024931,4]
[366808030,1750467053364,-513.0,0.00024931,4]
[366808031,1750467053375,-2895.02,0.00024931,4]
[366808032,1750467053385,-490.0,0.00024931,4]
[366808033,1750467053395,-490.0,0.00024931,4]
[366808034,1750467053405,-490.0,0.00024931,4]
[366808035,1750467053414,-490.0,0.00024931,4]
[366808036,1750467053426,-1070.55,0.00024931,4]
[366808037,1750467053435,-490.0,0.00024931,4]
[366808038,1750467053445,-490.0,0.00024931,4]
[366808039,1750467053455,-490.0,0.00024931,4]
[366808040,1750467053465,-490.0,0.00024931,4]
[366808041,1750467053474,-490.0,0.00024931,4]
[366808042,1750467053484,-490.0,0.00024931,4]
[366808043,1750467053562,-1435.61,0.00024931,4]
[366808044,1750467053572,-874.16,0.00024931,4]
[366808045,1750467053582,-490.0,0.00024931,4]
[366808046,1750467053591,-490.0,0.00024931,4]
[366808047,1750467053601,-490.0,0.00024931,4]
[366808048,1750467053611,-490.0,0.00024931,4]
[366808049,1750467053620,-630.58,0.00024931,4]
[366808050,1750467053629,-490.0,0.00024931,4]
[366808051,1750467053639,-490.0,0.00024931,4]
[366808052,1750467053648,-490.0,0.00024931,4]
[366808053,1750467053658,-170.6,0.00024931,4]
[366808054,1750467053667,-2562.11,0.00024931,2]
[366808055,1750467053676,-490.0,0.00024931,4]
[366808056,1750467053686,-490.0,0.00024931,4]
[366808057,1750467053695,-490.0,0.00024931,4]
[366808058,1750467053705,-490.0,0.00024931,4]
[366808059,1750467053714,-1288.18,0.00024931,4]
[366808060,1750467053725,-490.0,0.00024931,4]
[366808061,1750467053734,-490.0,0.00024931,4]
[366808062,1750467053743,-490.0,0.00024931,4]
[366808063,1750467053753,-490.0,0.00024931,4]
[366808064,1750467053763,-490.0,0.00024931,4]
[366808065,1750467053772,-490.0,0.00024931,4]
[366808066,1750467053782,-490.0,0.00024931,4]
[366808067,1750467053791,-817.53,0.00024931,4]
[366808068,1750467053801,-490.0,0.00024931,4]
[366808069,1750467053810,-490.0,0.00024931,4]
[366808070,1750467053820,-490.0,0.00024931,4]
[366808071,1750467053830,-490.0,0.00024931,4]
[366808072,1750467053839,-490.0,0.00024931,4]
[366808073,1750467053848,-1310.38,0.00024931,2]
[366808074,1750467053858,-490.0,0.00024931,4]
[366808075,1750467053867,-490.0,0.00024931,4]
[366808076,1750467053876,-490.0,0.00024931,4]
[366808077,1750467053886,-490.0,0.00024931,4]
[366808078,1750467053895,-1069.86,0.00024931,4]
[366808079,1750467053904,-490.0,0.00024931,4]
[366808080,1750467053914,-490.0,0.00024931,4]
[366808081,1750467053923,-490.0,0.00024931,4]
[366808082,1750467053932,-490.0,0.00024931,4]
[366808083,1750467053941,-490.0,0.00024931,4]
[366808084,1750467053950,-490.0,0.00024931,4]
[366808085,1750467053959,-490.0,0.00024931,4]
[366808086,1750467053968,-490.0,0.00024931,4]
[366808087,1750467053977,-490.0,0.00024931,4]
[366808088,1750467053987,-490.0,0.00024931,4]
[366808089,1750467053997,-5920.244102,0.00024931,4]
[366808090,1750467054006,-490.0,0.00024931,4]
[366808091,1750467054015,-490.0,0.00024931,4]
[366808092,1750467054025,-490.0,0.00024931,4]
[366808093,1750467054034,-490.0,0.00024931,4]
[366808094,1750467054043,-490.0,0.00024931,4]
[366808095,1750467054053,-525.89,0.00024931,4]
[366808096,1750467054063,-528.22224459,0.00024931,4]
[366808097,1750467054072,-490.0,0.00024931,2]
[366808098,1750467054082,-490.0,0.00024931,4]
[366808099,1750467054091,-490.0,0.00024931,4]
[366808100,1750467054101,-622.86,0.00024931,4]
[366808101,1750467054110,-800.28,0.00024931,4]
[366808102,1750467054119,-490.0,0.00024931,4]
[366808103,1750467054129,-151.0,0.00024931,7]
[366808104,1750467054139,-151.0,0.00024931,7]
[366808105,1750467054148,-490.0,0.00024931,4]
[366808106,1750467054158,-490.0,0.00024931,4]
[366808107,1750467054167,-1452.68655747,0.00024934,12]
[366808108,1750467054177,-178.24764546,0.00024942,2]
[366808109,1750467054187,-3322.01261887,0.00024967,2]
[366808110,1750467054197,-500.0,0.00024973,2]
[366808111,1750467054206,-152.71916323,0.00024973,2]
[366808112,1750467054216,-500.0,0.00024973,2]
[366808113,1750467054226,-401.52912252,0.00024973,2]
[366808114,1750467054236,-500.0,0.00024973,2]
[366808115,1750467054246,-500.0,0.00024973,2]
[366808116,1750467054255,-500.0,0.00024973,2]
[366808117,1750467054265,-500.0,0.00024973,2]
[366808118,1750467054275,-500.0,0.00024973,2]
[366808119,1750467054285,-502.54937556,0.00024973,2]
[366808120,1750467054297,-500.0,0.00024973,2]
[366808121,1750467054306,-500.0,0.00024973,2]
[366808122,1750467054316,-587.34850112,0.00024973,2]
[366808123,1750467054327,-165.24,0.00024988,2]
[366808124,1750467054336,-178.24764546,0.00024991,2]
[366808125,1750467054346,-168.0,0.00024999,2]
[366808126,1750467054356,-500.0,0.00025,3]
[366808127,1750467054367,-201.4659288,0.00025,2]
[366808128,1750467054377,-1732.54534151,0.00025,2]
[366808129,1750467054387,-200.0,0.00025,2]
[366808130,1750467054396,-2954.80880405,0.00025,2]
[366808131,1750467054405,-4028.10755497,0.00025,2]
[366808132,1750467054415,-1772.24560116,0.00025,2]
[366808133,1750467054425,-1033.22771517,0.00025,2]
[366808134,1750467054434,-162.38007367,0.00025,2]
[366808135,1750467054443,-250000.0,0.00025,2]
[366808136,1750467054453,-296.50052,0.00025,7]
[366808137,1750467054462,-296.50052,0.00025,7]
[366808138,1750467054471,-151.0,0.00025,7]
[366808139,1750467054481,-151.0,0.00025,7]
[366808140,1750467054490,-151.0,0.00025,7]
[366808141,1750467054499,-376.0,0.00025,2]
[366808142,1750467054509,-500.0,0.0002502,4]
[366808143,1750467054518,-178.24764546,0.00025039,2]
[366808144,1750467054527,-178.24764546,0.00025088,2]
[366808145,1750467054537,-152.0,0.00025089,3]
[366808146,1750467054547,-152.0,0.00025089,3]
[366808147,1750467054557,-152.0,0.00025089,3]
[366808148,1750467054566,-3281.1441358,0.000251,2]
[366808149,1750467054575,-769.0,0.000251,2]
[366808150,1750467054585,-238.0,0.000251,2]
[366808151,1750467054595,-4229.016,0.00025105,9]
[366808152,1750467054604,-178.805,0.00025105,9]
[366808153,1750467054613,-7012.83633181,0.0002513,2]
[366808154,1750467054623,-178.24764546,0.00025136,2]
[366808155,1750467054632,-151.0,0.00025161,7]
[366808156,1750467054642,-151.0,0.00025161,7]
[366808157,1750467054652,-151.0,0.00025161,7]
[366808158,1750467054662,-473.541414,0.00025161,7]
[366808159,1750467054672,-473.541414,0.00025161,7]
[366808160,1750467054681,-151.0,0.00025161,7]
[366808161,1750467054691,-218.770736,0.00025162,7]
[366808162,1750467054701,-151.0,0.00025162,7]
[366808163,1750467054710,-216.801169,0.00025162,7]
[366808164,1750467054720,-216.801169,0.00025162,7]
[366808165,1750467054730,-151.0,0.00025166,7]
[366808166,1750467054739,-156.640263,0.00025166,7]
[366808167,1750467054749,-156.640263,0.00025166,7]
[366808168,1750467054758,-200.0,0.0002517,2]
[366808169,1750467054768,-3322.01261887,0.00025171,2]
[366808170,1750467054777,-775.0,0.00025178,2]
[366808171,1750467054787,-266.0,0.00025178,2]
[366808172,1750467054796,-2037.0,0.00025186,2]
[366808173,1750467054806,-500.0,0.00025187,4]
[366808174,1750467054815,-151.0,0.00025188,7]
[366808175,1750467054825,-151.0,0.00025188,7]
[366808176,1750467054835,-151.0,0.00025188,7]
[366808177,1750467054844,-151.0,0.00025188,7]
[366808178,1750467054854,-151.0,0.00025188,7]
[366808179,1750467054864,-138713.7324046,0.00025188,2]
[366808180,1750467054874,-5255.856162,0.00025188,2]
[366808181,1750467054883,-155.886971,0.00025189,7]
[366808182,1750467054893,-155.886971,0.00025189,7]
[366808183,1750467054903,-180.919522,0.00025189,7]
[366808184,1750467054912,-208.756452,0.00025189,7]
[366808185,1750467054922,-208.756452,0.00025189,7]
[366808186,1750467054932,-151.0,0.00025194,7]
[366808187,1750467054943,-151.0,0.00025194,7]
[366808188,1750467054952,-231.764256,0.00025194,7]
[366808189,1750467054962,-231.764256,0.00025194,7]
[366808190,1750467054972,-151.0,0.00025194,7]
[366808191,1750467054982,-151.0,0.00025194,7]
[366808192,1750467054993,-303.158107,0.00025194,7]
[366808193,1750467055002,-151.0,0.00025204,7]
[366808194,1750467055013,-151.0,0.00025204,7]
[366808195,1750467055022,-490.0,0.00025204,4]
[366808196,1750467055033,-500.0,0.00025204,4]
[366808197,1750467055043,-562.94357313,0.00025204,4]
[366808198,1750467055052,-1406.95,0.00025204,4]
[366808199,1750467055063,-500.0,0.00025204,4]
[366808200,1750467055072,-13085.3306068,0.00025205,5]
[366808201,1750467055082,-451109.95721964,0.00025205,5]
[366808202,1750467055091,-151.0,0.00025205,7]
[366808203,1750467055101,-151.0,0.00025205,7]
[366808204,1750467055110,-152.780342,0.00025205,7]
[366808205,1750467055120,-151.0,0.00025205,7]
[366808206,1750467055130,-151.0,0.00025205,7]
[366808207,1750467055140,-206.24513,0.00025205,7]
[366808208,1750467055149,-206.24513,0.00025205,7]
[366808209,1750467055159,-151.0,0.00025205,7]
[366808210,1750467055170,-492.12042796,0.00025205,4]
[366808211,1750467055179,-490.0,0.00025205,4]
[366808212,1750467055189,-169.02903,0.00025205,7]
[366808213,1750467055198,-466.108384,0.00025205,7]
[366808214,1750467055208,-466.108384,0.00025205,7]
[366808215,1750467055217,-227.006127,0.00025205,7]
[366808216,1750467055226,-227.006127,0.00025205,7]
[366808217,1750467055236,-490.0,0.00025205,4]
[366808218,1750467055245,-490.0,0.00025205,4]
[366808219,1750467055255,-490.0,0.00025205,4]
[366808220,1750467055265,-535.50885125,0.00025205,4]
[366808221,1750467055274,-490.0,0.00025205,4]
[366808222,1750467055285,-490.0,0.00025205,4]
[366808223,1750467055297,-490.0,0.00025205,4]
[366808224,1750467055307,-490.0,0.00025205,4]
[366808225,1750467055316,-490.0,0.00025205,4]
[366808226,1750467055325,-490.0,0.00025205,4]
[366808227,1750467055335,-490.0,0.00025205,4]
[366808228,1750467055345,-465.75,0.00025205,4]
[366808229,1750467055355,-151.0,0.00025205,7]
[366808230,1750467055365,-490.0,0.00025205,4]
[366808231,1750467055375,-490.0,0.00025205,4]
[366808232,1750467055384,-238.67072567,0.00025205,4]
[366808233,1750467055394,-210.0,0.00025205,4]
[366808234,1750467055404,-490.0,0.00025205,4]
[366808235,1750467055413,-490.0,0.00025205,4]
[366808236,1750467055423,-490.0,0.00025205,4]
[366808237,1750467055432,-490.0,0.00025205,4]
[366808238,1750467055442,-490.0,0.00025205,4]
[366808239,1750467055452,-490.0,0.00025205,4]
[366808240,1750467055462,-151.0,0.00025205,7]
[366808241,1750467055471,-490.0,0.00025205,4]
[366808242,1750467055481,-490.0,0.00025205,4]
[366808243,1750467055491,-490.0,0.00025205,4]
[366808244,1750467055500,-490.0,0.00025205,4]
[366808245,1750467055509,-490.0,0.00025205,4]
[366808246,1750467055519,-499.03,0.00025205,4]
[366808247,1750467055529,-490.0,0.00025205,4]
[366808248,1750467055538,-490.0,0.00025205,4]
[366808249,1750467055548,-490.0,0.00025205,4]
[366808250,1750467055558,-490.0,0.00025205,4]
[366808251,1750467055567,-490.0,0.00025205,4]
[366808252,1750467055577,-490.0,0.00025205,4]
[366808253,1750467055587,-490.0,0.00025205,4]
[366808254,1750467055597,-490.0,0.00025205,4]
[366808255,1750467055607,-490.0,0.00025205,4]
[366808256,1750467055618,-490.0,0.00025205,4]
[366808257,1750467055628,-490.0,0.00025205,4]
[366808258,1750467055639,-151.0,0.00025205,7]
[366808259,1750467055649,-490.0,0.00025205,4]
[366808260,1750467055658,-490.0,0.00025205,4]
[366808261,1750467055668,-490.0,0.00025205,4]
[366808262,1750467055677,-490.0,0.00025205,4]
[366808263,1750467055686,-490.0,0.00025205,4]
[366808264,1750467055696,-490.0,0.00025205,4]
[366808265,1750467055707,-566.3,0.00025205,4]
[366808266,1750467055717,-490.0,0.00025205,4]
[366808267,1750467055726,-490.0,0.00025205,4]
[366808268,1750467055735,-490.0,0.00025205,4]
[366808269,1750467055745,-490.0,0.00025205,4]
[366808270,1750467055755,-490.0,0.00025205,4]
[366808271,1750467055764,-490.0,0.00025205,4]
[366808272,1750467055775,-490.0,0.00025205,4]
[366808273,1750467055784,-216.801169,0.00025205,7]
[366808274,1750467055794,-490.0,0.00025205,4]
[366808275,1750467055803,-216.801169,0.00025205,7]
[366808276,1750467055813,-473.541414,0.00025205,7]
[366808277,1750467055822,-473.541414,0.00025205,7]
[366808278,1750467055832,-490.0,0.00025205,4]
[366808279,1750467055841,-490.0,0.00025205,4]
[366808280,1750467055850,-490.0,0.00025205,4]
[366808281,1750467055860,-490.0,0.00025205,4]
[366808282,1750467055870,-490.0,0.00025205,4]
[366808283,1750467055880,-490.0,0.00025205,4]
[366808284,1750467055889,-490.0,0.00025205,4]
[366808285,1750467055899,-640.8,0.00025205,4]
[366808286,1750467055909,-490.0,0.00025205,4]
[366808287,1750467055919,-490.0,0.00025205,4]
[366808288,1750467055929,-490.0,0.00025205,4]
[366808289,1750467055939,-490.0,0.00025205,4]
[366808290,1750467055948,-156.640263,0.00025205,7]
[366808291,1750467055958,-490.0,0.00025205,4]
[366808292,1750467055967,-490.0,0.00025205,4]
[366808293,1750467055977,-156.640263,0.00025205,7]
[366808294,1750467055988,-490.0,0.00025205,4]
[366808295,1750467055997,-490.0,0.00025205,4]
[366808296,1750467056007,-490.0,0.00025205,4]
[366808297,1750467056017,-490.0,0.00025205,4]
[366808298,1750467056027,-490.0,0.00025205,4]
[366808299,1750467056037,-490.0,0.00025205,4]
[366808300,1750467056047,-991.7,0.00025205,4]
[366808301,1750467056069,-490.0,0.00025205,4]
[366808302,1750467056081,-336.491157,0.00025205,7]
[366808303,1750467056091,-490.0,0.00025205,4]
[366808304,1750467056101,-490.0,0.00025205,4]
[366808305,1750467056111,-439.52815815,0.00025205,4]
[366808306,1750467056122,-490.0,0.00025205,4]
[366808307,1750467056131,-490.0,0.00025205,4]
[366808308,1750467056142,-490.0,0.00025205,4]
[366808309,1750467056151,-490.0,0.00025205,4]
[366808310,1750467056162,-506.13,0.00025205,4]
[366808311,1750467056173,-490.0,0.00025205,4]
[366808312,1750467056182,-490.0,0.00025205,4]
[366808313,1750467056192,-490.0,0.00025205,4]
[366808314,1750467056201,-490.0,0.00025205,4]
[366808315,1750467056211,-490.0,0.00025205,4]
[366808316,1750467056222,-490.0,0.00025205,4]
[366808317,1750467056232,-490.0,0.00025205,4]
[366808318,1750467056242,-490.0,0.00025205,4]
[366808319,1750467056251,-490.0,0.00025205,4]
[366808320,1750467056263,-490.0,0.00025205,4]
[366808321,1750467056274,-490.0,0.00025205,4]
[366808322,1750467056285,-490.0,0.00025205,4]
[366808323,1750467056298,-490.0,0.00025205,4]
[366808324,1750467056309,-490.0,0.00025205,4]
[366808325,1750467056319,-490.0,0.00025205,4]
[366808326,1750467056332,-490.0,0.00025205,4]
[366808327,1750467056342,-500.17155909,0.00025205,4]
[366808328,1750467056354,-490.0,0.00025205,4]
[366808329,1750467056366,-490.0,0.00025205,4]
[366808330,1750467056377,-490.0,0.00025205,4]
[366808331,1750467056388,-490.0,0.00025205,4]
[366808332,1750467056398,-490.0,0.00025205,4]
[366808333,1750467056409,-490.0,0.00025205,4]
[366808334,1750467056419,-490.0,0.00025205,4]
[366808335,1750467056430,-490.0,0.00025205,4]
[366808336,1750467056440,-569.52,0.00025205,4]
[366808337,1750467056451,-490.0,0.00025205,4]
[366808338,1750467056462,-490.0,0.00025205,4]
[366808339,1750467056472,-490.0,0.00025205,4]
[366808340,1750467056483,-490.0,0.00025205,4]
[366808341,1750467056494,-151.0,0.00025205,7]
[366808342,1750467056510,-490.0,0.00025205,4]
[366808343,1750467056521,-490.0,0.00025205,4]
[366808344,1750467056533,-490.0,0.00025205,4]
[366808345,1750467056546,-490.0,0.00025205,4]
[366808346,1750467056559,-249.393964,0.00025205,7]
[366808347,1750467056571,-828.07,0.00025205,4]
[366808348,1750467056583,-490.0,0.00025205,4]
[366808349,1750467056595,-490.0,0.00025205,4]
[366808350,1750467056606,-490.0,0.00025205,4]
[366808351,1750467056617,-391.55996241,0.00025205,4]
[366808352,1750467056628,-151.0,0.00025205,7]
[366808353,1750467056640,-151.0,0.00025205,7]
[366808354,1750467056651,-490.0,0.00025205,4]
[366808355,1750467056662,-490.0,0.00025205,4]
[366808356,1750467056673,-490.0,0.00025205,4]
[366808357,1750467056684,-490.0,0.00025205,4]
[366808358,1750467056695,-490.0,0.00025205,4]
[366808359,1750467056705,-490.0,0.00025205,4]
[366808360,1750467056717,-490.0,0.00025205,4]
[366808361,1750467056728,-490.0,0.00025205,4]
[366808362,1750467056740,-490.0,0.00025205,4]
[366808363,1750467056751,-490.0,0.00025205,4]
[366808364,1750467056762,-490.0,0.00025205,4]
[366808365,1750467056774,-635.04776713,0.00025205,4]
[366808366,1750467056785,-490.0,0.00025205,4]
[366808367,1750467056796,-490.0,0.00025205,4]
[366808368,1750467056807,-490.0,0.00025205,4]